bitfinex/quotes_SOLUSD_20220227
["timestamp","ask_amount","ask_price","bid_price","bid_amount"]
[1645944843490,4.51640884,88.778,88.715,59.73665645]
[1645944843690,2.74678921,88.777,88.715,59.73665645]
[1645944844293,26.50182053,88.776,88.685,22.779]
[1645944844490,26.50182053,88.776,88.661,2.87195179]
[1645944844491,1.44762214,88.775,88.686,22.7945]
[1645944844693,4.508,88.774,88.686,22.7945]
[1645944844890,1.61175235,88.759,88.686,22.7945]
[1645944845091,1.62555682,88.757,88.686,22.7945]
[1645944845392,1.62555682,88.757,88.687,43.04252613]
[1645944845590,2.74678921,88.756,88.687,43.04252613]
[1645944847795,4.52548191,88.756,88.687,43.04252613]
[1645944848897,2.74678921,88.755,88.687,43.04252613]
[1645944849398,2.74678921,88.755,88.687,42.54252613]
[1645944850701,22.5141,88.758,88.687,42.54252613]
[1645944851104,1.75233147,88.77,88.687,42.54252613]
[1645944851323,22.7985,88.789,88.688,118.43707557]
[1645944851501,22.7985,88.789,88.69,112.7]
[1645944851702,22.7985,88.789,88.691,2.83496634]
[1645944851899,22.7985,88.789,88.692,4.507]
[1645944852299,22.7985,88.789,88.694,3.11331736]
[1645944852703,22.7985,88.789,88.694,7.12031736]
[1645944852904,22.7985,88.789,88.695,2.74678921]
[1645944854208,22.7985,88.789,88.696,4.507]
[1645944854404,22.7985,88.789,88.697,23.2643]
[1645944854605,22.7985,88.789,88.698,7.37078259]
[1645944856406,22.7985,88.789,88.701,112.7]
[1645944856708,22.7985,88.789,88.704,112.7]
[1645944856904,22.7985,88.789,88.706,112.7]
[1645944857107,22.7985,88.789,88.708,112.7]
[1645944857305,22.7985,88.789,88.709,7.50879036]
[1645944857506,22.7985,88.789,88.709,4.507]
[1645944857706,22.7985,88.789,88.708,4.507]
[1645944857907,22.7985,88.789,88.71,16.9037]
[1645944859507,22.7985,88.789,88.711,4.507]
[1645944860309,22.7985,88.789,88.712,2.74678921]
[1645944860607,22.7985,88.789,88.713,4.507]
[1645944861008,22.7985,88.789,88.714,2.74678921]
[1645944861213,22.7985,88.789,88.715,4.506]
[1645944861811,22.7985,88.789,88.711,4.506]
[1645944862208,22.7985,88.789,88.711,7.25278921]
[1645944862409,22.7985,88.789,88.712,2.74678921]
[1645944862620,22.7985,88.789,88.713,4.507]
[1645944863018,22.7985,88.789,88.714,2.74678921]
[1645944863216,22.7985,88.789,88.715,4.506]
[1645944864116,22.7985,88.789,88.711,4.506]
[1645944864517,22.7985,88.789,88.711,7.25278921]
[1645944864717,1.77007197,88.8,88.712,112.7]
[1645944864918,1.70257417,88.827,88.721,112.7]
[1645944865117,4.506,88.85,88.731,112.7]
[1645944865318,1.75325341,88.852,88.733,112.7]
[1645944865520,1.75325341,88.852,88.735,112.7]
[1645944865818,1.75325341,88.852,88.734,7.34620776]
[1645944865819,1.75325341,88.852,88.738,3.07841431]
[1645944866017,1.75325341,88.852,88.74,16.57]
[1645944866217,1.75325341,88.852,88.741,2.98163555]
[1645944866438,1.75325341,88.852,88.741,5.72842476]
[1645944866737,1.75325341,88.852,88.742,29.58633707]
[1645944866941,1.75325341,88.852,88.743,3.03484331]
[1645944867138,1.75325341,88.852,88.744,4.503]
[1645944867337,1.75325341,88.852,88.744,34.08933707]
[1645944867541,1.75325341,88.852,88.745,29.58633707]
[1645944867740,1.75325341,88.852,88.746,4.503]
[1645944868342,16.57,88.85,88.746,4.503]
[1645944868548,1.71624428,88.849,88.746,4.503]
[1645944869346,1.71624428,88.849,88.746,117.203]
[1645944869548,1.71624428,88.849,88.751,112.7]
[1645944869845,1.71624428,88.849,88.753,46.54464092]
[1645944870046,1.71624428,88.849,88.754,117.203]
[1645944870245,1.71624428,88.849,88.756,112.7]
[1645944870450,1.71624428,88.849,88.756,117.203]
[1645944871246,1.71624428,88.849,88.758,112.7]
[1645944871647,1.71624428,88.849,88.76,112.7]
[1645944871847,1.71624428,88.849,88.761,4.503]
[1645944874050,1.71624428,88.849,88.76,4.503]
[1645944874852,1.71624428,88.849,88.759,29.58616373]
[1645944875051,1.71624428,88.849,88.76,29.58616373]
[1645944876653,1.71624428,88.849,88.755,24.9472]
[1645944877656,13.85877837,88.848,88.756,22.7014]
[1645944878056,1.77975184,88.847,88.756,22.7014]
[1645944890770,1.77975184,88.847,88.757,2.74678921]
[1645944891972,1.77975184,88.847,88.757,115.44678921]
[1645944892173,1.77975184,88.847,88.757,145.03295294]
[1645944892372,1.68271196,88.852,88.758,2.74678921]
[1645944892798,1.68271196,88.852,88.759,112.7]
[1645944893194,1.68271196,88.852,88.76,2.74678921]
[1645944893594,1.68271196,88.852,88.761,112.7]
[1645944893994,1.68271196,88.852,88.762,2.74678921]
[1645944898201,18.35021196,88.852,88.762,2.74678921]
[1645944898401,1.79296928,88.851,88.762,2.74678921]
[1645944898802,1.79296928,88.851,88.76,33.4643]
[1645944902906,1.79296928,88.851,88.76,36.21108921]
[1645944903406,1.79296928,88.851,88.761,112.7]
[1645944904209,1.79296928,88.851,88.763,112.7]
[1645944904609,1.79296928,88.851,88.764,29.58616373]
[1645944906814,1.79296928,88.851,88.765,4.503]
[1645944907213,1.79296928,88.851,88.767,52.04514965]
[1645944907413,1.79296928,88.851,88.768,4.503]
[1645944908615,1.79296928,88.851,88.768,117.203]
[1645944908813,1.79296928,88.851,88.768,4.503]
[1645944910215,1.79296928,88.851,88.767,52.04514965]
[1645944914817,1.79296928,88.851,88.768,4.503]
[1645944918122,1.79296928,88.851,88.768,117.203]
[1645944918322,23.5593,88.853,88.771,112.7]
[1645944918521,23.5593,88.853,88.772,4.503]
[1645944918723,23.5593,88.853,88.773,112.7]
[1645944918946,23.5593,88.853,88.774,4.503]
[1645944919342,23.5593,88.853,88.775,112.7]
[1645944919542,23.5593,88.853,88.781,112.7]
[1645944919742,23.5593,88.853,88.784,112.7]
[1645944919943,23.5593,88.853,88.785,4.503]
[1645944920346,23.5593,88.853,88.786,112.7]
[1645944920555,23.5593,88.853,88.788,112.7]
[1645944920847,23.5593,88.853,88.789,4.503]
[1645944921550,23.5593,88.853,88.791,112.7]
[1645944921749,23.5593,88.853,88.791,117.203]
[1645944922650,1.78409291,88.866,88.792,115.44678921]
[1645944922949,1.79344532,88.895,88.794,112.7]
[1645944923149,1.79344532,88.895,88.796,115.25199355]
[1645944923350,1.79344532,88.895,88.811,112.7]
[1645944923549,1.79344532,88.895,88.813,59.81204694]
[1645944923749,1.79344532,88.895,88.814,112.7]
[1645944924848,1.79344532,88.895,88.815,4.501]
[1645944925449,1.79344532,88.895,88.814,112.7]
[1645944926251,1.79344532,88.895,88.816,112.7]
[1645944926450,1.79344532,88.895,88.821,112.7]
[1645944926652,24.4175,88.913,88.821,112.7]
[1645944926850,24.4175,88.913,88.824,2.79066139]
[1645944927051,24.4175,88.913,88.825,4.751]
[1645944927253,24.4175,88.913,88.831,112.7]
[1645944927452,24.4175,88.913,88.833,112.7]
[1645944927651,24.4175,88.913,88.834,4.5]
[1645944928053,24.067,88.912,88.834,4.5]
[1645944928253,24.067,88.912,88.835,2.74678921]
[1645944928454,24.067,88.912,88.836,4.5]
[1645944928654,25.70962996,88.912,88.836,4.5]
[1645944928854,25.70962996,88.912,88.837,112.7]
[1645944929054,25.70962996,88.912,88.838,4.5]
[1645944930161,25.70962996,88.912,88.837,4.5]
[1645944930357,1.6716656,88.911,88.837,4.5]
[1645944934465,7.5916656,88.911,88.837,4.5]
[1645944934666,2.74678921,88.91,88.837,4.5]
[1645944934863,19.31678921,88.91,88.837,4.5]
[1645944935064,1.62021862,88.909,88.837,4.5]
[1645944935266,4.36700783,88.909,88.837,4.5]
[1645944935565,2.74678921,88.908,88.837,4.5]
[1645944938764,1.62021862,88.909,88.837,4.5]
[1645944957600,16.57,88.94,88.837,4.5]
[1645944957804,24.33454042,88.977,88.85,16.57]
[1645944958002,40.89502192,88.995,88.851,117.7]
[1645944958201,1.47064824,88.994,88.92,12.96708479]
[1645944958401,1.47064824,88.994,88.92,21.11708479]
[1645944958599,1.45524734,89.018,88.921,5.7358949]
[1645944958803,1.43506598,89.039,88.922,137.5948]
[1645944958999,1.43506598,89.039,88.93,16.8617]
[1645944959199,112.97583207,89.073,88.93,16.8617]
[1645944959200,109.8133,89.073,88.94,16.57]
[1645944959400,16.7069,89.042,88.941,2.37703402]
[1645944959603,1.44826864,89.071,88.943,112.7]
[1645944959802,8.49527783,89.086,88.951,112.7]
[1645944960005,7.0,89.086,88.961,112.7]
[1645944960211,112.2,89.147,88.97,16.57]
[1645944960212,56.25334192,89.092,88.97,16.57]
[1645944960410,56.25334192,89.092,88.971,115.22648059]
[1645944960610,56.25334192,89.092,88.972,2.78391622]
[1645944961008,16.57,89.08,88.961,46.9677]
[1645944961208,1.71905347,89.079,88.962,2.5994862]
[1645944961409,7.0,89.059,88.962,2.5994862]
[1645944961609,16.57,89.05,88.962,2.5994862]
[1645944961814,53.62645134,89.049,88.962,2.5994862]
[1645944962009,1.80933617,89.048,88.962,2.5994862]
[1645944962210,18.46214869,89.048,88.962,2.5994862]
[1645944962411,1.79619346,89.047,88.962,2.5994862]
[1645944962609,7.34611237,89.047,88.962,2.5994862]
[1645944963014,53.62645134,89.049,88.962,2.5994862]
[1645944963411,53.62645134,89.049,88.963,5.8138952]
[1645944964311,53.62645134,89.049,88.963,115.44678921]
[1645944964512,53.62645134,89.049,88.964,2.76072045]
[1645944964713,63.9606,89.07,88.964,2.76072045]
[1645944964914,63.9606,89.07,88.964,5.50750966]
[1645944965314,63.9606,89.07,88.965,2.74678921]
[1645944965912,47.65650969,89.069,88.965,2.74678921]
[1645944966214,47.65650969,89.069,88.964,2.76072045]
[1645944966415,17.41874875,89.068,88.964,2.76072045]
[1645944967214,47.65650969,89.069,88.964,2.76072045]
[1645944967414,63.9606,89.07,88.964,2.76072045]
[1645944967619,63.9606,89.07,88.963,112.7]
[1645944967620,47.3906,89.07,88.972,3.0491405]
[1645944967816,47.3906,89.07,88.981,112.7]
[1645944968016,47.3906,89.07,88.983,112.7]
[1645944968217,47.3906,89.07,88.984,2.68561344]
[1645944968419,58.72062249,89.069,88.984,2.68561344]
[1645944969421,58.72062249,89.069,88.985,2.74678921]
[1645944969622,58.72062249,89.069,88.985,115.44678921]
[1645944969921,58.72062249,89.069,88.986,5.39862412]
[1645944970122,46.5679,89.089,88.991,112.7]
[1645944970321,46.5679,89.089,88.992,3.0405547]
[1645944970524,46.5679,89.089,88.993,112.7]
[1645944971026,46.5679,89.089,88.996,2.70875679]
[1645944971224,44.95102472,89.088,88.996,2.70875679]
[1645944971421,44.95102472,89.088,88.997,2.74678921]
[1645944972424,7.0,89.116,88.997,2.74678921]
[1645944972623,7.0,89.116,89.021,112.7]
[1645944972822,7.0,89.134,89.03,16.57]
[1645944973026,1.56223393,89.169,89.032,2.72071561]
[1645944973224,7.0,89.154,89.032,2.72071561]
[1645944973424,7.0,89.154,89.033,40.32339608]
[1645944973723,7.0,89.154,89.034,18.84335166]
[1645944974023,1.5,89.154,89.035,18.8984903]
[1645944974224,1.50784014,89.157,89.036,3.03418456]
[1645944974430,16.8446,89.15,89.036,3.03418456]
[1645944974626,1.5377202,89.149,89.036,3.03418456]
[1645944975532,46.51192433,89.143,89.036,3.03418456]
[1645944975926,1.5,89.139,89.036,3.03418456]
[1645944980030,1.5,89.136,89.036,3.03418456]
[1645944980430,1.5,89.136,89.037,2.74678921]
[1645944980633,1.5,89.136,89.037,9.83678921]
[1645944980931,46.51192433,89.143,89.041,115.68702022]
[1645944981135,46.51192433,89.143,89.042,2.34180198]
[1645944981435,46.51192433,89.143,89.043,112.7]
[1645944981632,46.51192433,89.143,89.046,3.06327986]
[1645944981834,46.51192433,89.143,89.05,16.57]
[1645944982033,1.5,89.156,89.051,2.99825564]
[1645944982233,0.61117776,89.159,89.052,2.67838724]
[1645944982433,0.61117776,89.159,89.052,18.60611665]
[1645944982632,0.61117776,89.159,89.054,2.89174312]
[1645944983032,0.61117776,89.159,89.057,2.65497692]
[1645944983236,43.00962091,89.158,89.061,112.7]
[1645944983432,43.00962091,89.158,89.062,2.87956624]
[1645944983633,43.00962091,89.158,89.064,2.52745271]
[1645944984033,43.00962091,89.158,89.065,2.74678921]
[1645944984234,43.00962091,89.158,89.068,2.87644122]
[1645944984635,43.00962091,89.158,89.068,5.62323043]
[1645944985038,0.61117776,89.159,89.071,112.7]
[1645944985236,0.61117776,89.159,89.072,2.27457204]
[1645944985437,0.61117776,89.159,89.073,112.7]
[1645944985638,0.61117776,89.159,89.073,128.62772941]
[1645944985840,0.61117776,89.159,89.074,3.00632399]
[1645944986038,0.61117776,89.159,89.075,112.7]
[1645944986358,16.57,89.22,89.075,112.7]
[1645944986359,1.5,89.201,89.101,112.7]
[1645944986559,1.5,89.211,89.111,112.7]
[1645944986758,46.884,89.258,89.112,0.25]
[1645944986959,1.5,89.244,89.112,2.88686569]
[1645944987159,1.5,89.244,89.113,170.46404845]
[1645944987358,52.1405085,89.243,89.131,112.7]
[1645944987559,52.1405085,89.243,89.141,112.7]
[1645944987766,1.5,89.256,89.142,2.82343328]
[1645944987966,1.5,89.256,89.143,112.7]
[1645944988166,1.5,89.256,89.15,207.14]
[1645944988371,1.72458477,89.303,89.161,112.7]
[1645944988572,1.5,89.284,89.171,112.7]
[1645944988863,1.5,89.284,89.181,2.83395181]
[1645944989266,1.5,89.284,89.181,115.53395181]
[1645944989465,1.5,89.284,89.19,16.8123]
[1645944989668,16.5587,89.303,89.191,115.30182351]
[1645944989865,2.74678921,89.315,89.2,16.57]
[1645944990064,2.74678921,89.325,89.201,3.10487242]
[1645944990266,2.74678921,89.325,89.201,5.85166163]
[1645944990466,1.4841442,89.337,89.201,5.85166163]
[1645944990467,46.04775318,89.308,89.201,5.85166163]
[1645944990666,46.04775318,89.308,89.202,2.74678921]
[1645944990872,2.74678921,89.307,89.201,3.10487242]
[1645944991471,31.1094248,89.307,89.201,3.10487242]
[1645944991669,24.06055154,89.306,89.201,3.10487242]
[1645944991868,26.80734075,89.306,89.201,3.10487242]
[1645944992068,31.1094248,89.305,89.201,3.10487242]
[1645944992269,1.5,89.284,89.201,3.10487242]
[1645944992472,60.77633272,89.283,89.15,207.14]
[1645944992771,16.57,89.28,89.182,2.43239508]
[1645944993170,16.8255,89.25,89.151,47.5723]
[1645944993379,23.3855,89.25,89.152,2.35629898]
[1645944993573,1.5,89.231,89.152,2.35629898]
[1645944993771,57.56793214,89.23,89.152,2.35629898]
[1645944993974,60.31472135,89.23,89.152,2.35629898]
[1645944994171,2.74678921,89.229,89.152,2.35629898]
[1645944994573,2.74678921,89.229,89.133,2.43390209]
[1645944994771,2.74678921,89.229,89.063,5.0]
[1645944994772,16.57,89.22,89.092,3.0956941]
[1645944994973,1.5,89.196,89.092,3.0956941]
[1645944995170,45.17764299,89.195,89.092,2.8704211]
[1645944995372,45.17764299,89.195,89.091,47.0287]
[1645944995373,16.57,89.19,89.066,2.8730859]
[1645944995578,1.5,89.174,89.066,2.8730859]
[1645944995773,56.63313926,89.173,89.066,2.8730859]
[1645944995975,1.53311644,89.172,89.066,2.8730859]
[1645944996472,1.5,89.161,89.066,2.8730859]
[1645944996874,1.79989562,89.169,89.066,2.8730859]
[1645944997075,2.74678921,89.16,89.066,2.8730859]
[1645944997274,55.62061887,89.159,89.066,2.8730859]
[1645944997475,1.4960819,89.158,89.066,2.8730859]
[1645944997675,4.24287111,89.158,89.066,2.8730859]
[1645944998078,2.74678921,89.157,89.066,2.8730859]
[1645944998279,55.62061887,89.159,89.066,2.8730859]
[1645944998483,55.62061887,89.159,89.067,2.74678921]
[1645944999079,55.62061887,89.159,89.066,2.8730859]
[1645944999280,55.62061887,89.159,89.067,2.74678921]
[1645944999882,55.62061887,89.159,89.066,2.8730859]
[1645945000481,4.24285905,89.158,89.066,2.8730859]
[1645945000982,2.74678921,89.157,89.033,23.6621]
[1645945001179,2.74678921,89.157,89.035,2.2623472]
[1645945001380,1.5,89.156,89.035,2.2623472]
[1645945001779,1.5,89.149,89.035,2.2623472]
[1645945001981,49.53830093,89.139,89.035,2.2623472]
[1645945002279,16.57,89.13,89.035,2.2623472]
[1645945002480,1.51397867,89.129,89.015,2.29660872]
[1645945002683,4.26076788,89.129,89.015,2.29660872]
[1645945002882,1.5,89.114,89.015,2.29660872]
[1645945003080,16.57,89.1,89.015,2.29660872]
[1645945003281,52.59419539,89.099,89.015,2.29660872]
[1645945003682,52.59419539,89.099,89.016,2.74678921]
[1645945004083,52.59419539,89.099,89.017,4.491]
[1645945004483,52.59419539,89.099,89.018,2.74678921]
[1645945004686,52.59419539,89.099,89.019,4.491]
[1645945005184,52.59419539,89.099,89.02,2.74678921]
[1645945005385,52.59419539,89.099,89.021,4.491]
[1645945005785,2.74678921,89.127,89.022,2.74678921]
[1645945005989,1.5,89.144,89.023,4.49]
[1645945006188,16.57,89.15,89.023,50.56810402]
[1645945006391,1.5,89.154,89.024,5.82402011]
[1645945006586,13.48,89.15,89.03,13.48]
[1645945006785,52.50039146,89.149,89.031,4.489]
[1645945006987,52.50039146,89.149,89.031,31.43244329]
[1645945007190,52.50039146,89.149,89.031,42.73685315]
[1645945007486,52.50039146,89.149,89.033,2.93154834]
[1645945007686,52.50039146,89.149,89.034,4.489]
[1645945007887,52.50039146,89.149,89.034,7.23578921]
[1645945008087,52.50039146,89.149,89.036,2.63307115]
[1645945008288,52.50039146,89.149,89.04,13.48]
[1645945008490,52.50039146,89.149,89.041,4.489]
[1645945008690,52.50039146,89.149,89.042,112.7]
[1645945008889,52.50039146,89.149,89.044,112.7]
[1645945009089,13.48,89.18,89.045,4.739]
[1645945009290,1.5,89.186,89.061,112.7]
[1645945009490,2.74678921,89.187,89.064,2.35513356]
[1645945009790,2.74678921,89.187,89.065,4.488]
[1645945009989,60.54834203,89.186,89.065,7.23478921]
[1645945010190,60.54834203,89.186,89.066,2.74678921]
[1645945010391,2.74678921,89.185,89.067,4.488]
[1645945010791,2.74678921,89.185,89.068,2.74678921]
[1645945010994,2.74678921,89.185,89.069,4.488]
[1645945011393,4.61624866,89.185,89.069,4.488]
[1645945011692,1.74053452,89.184,89.064,2.35513356]
[1645945011891,13.48,89.17,89.064,2.35513356]
[1645945012093,44.36342927,89.169,89.064,2.35513356]
[1645945012292,44.36342927,89.169,89.065,2.74678921]
[1645945012492,44.36342927,89.169,89.066,4.488]
[1645945012910,44.36342927,89.169,89.072,2.77012635]
[1645945013310,44.36342927,89.169,89.073,2.74678921]
[1645945014013,44.36342927,89.169,89.074,4.488]
[1645945014218,1.5,89.209,89.075,0.25]
[1645945014413,1.5,89.209,89.091,112.7]
[1645945014713,1.5,89.209,89.094,2.90326065]
[1645945014913,1.5,89.209,89.095,4.486]
[1645945015315,59.98308626,89.208,89.096,112.7]
[1645945015514,59.98308626,89.208,89.098,112.7]
[1645945015716,59.98308626,89.208,89.099,2.4131899]
[1645945015916,59.98308626,89.208,89.1,4.486]
[1645945016717,59.98308626,89.208,89.101,2.74678921]
[1645945016917,59.98308626,89.208,89.102,4.486]
[1645945017318,59.98308626,89.208,89.103,2.74678921]
[1645945018318,59.98308626,89.208,89.095,4.486]
[1645945018518,16.835,89.2,89.095,4.486]
[1645945018719,30.315,89.2,89.094,2.60894556]
[1645945018919,2.74678921,89.199,89.094,2.60894556]
[1645945019118,52.98076151,89.199,89.094,2.60894556]
[1645945019319,51.01694348,89.193,89.063,50.5804]
[1645945019520,46.59116533,89.179,89.064,2.32457919]
[1645945019719,46.59116533,89.179,89.065,4.488]
[1645945020121,2.74678921,89.178,89.065,4.488]
[1645945020519,1.5,89.176,89.064,2.32457919]
[1645945020925,2.74678921,89.175,89.064,2.32457919]
[1645945021121,55.98898574,89.159,89.064,2.32457919]
[1645945022622,2.74678921,89.158,89.064,2.32457919]
[1645945023021,1.5,89.154,89.064,2.32457919]
[1645945023222,13.48,89.15,89.064,2.32457919]
[1645945024123,4.52933969,89.149,89.037,2.74678921]
[1645945024522,2.74678921,89.148,89.037,2.74678921]
[1645945024724,7.0,89.139,89.037,2.74678921]
[1645945024924,48.52328977,89.139,89.037,2.74678921]
[1645945025424,48.52328977,89.139,89.039,112.7]
[1645945025624,48.52328977,89.139,89.04,2.96554586]
[1645945025824,48.52328977,89.139,89.041,112.7]
[1645945026024,48.52328977,89.139,89.043,112.7]
[1645945026224,48.52328977,89.139,89.044,2.36116656]
[1645945026425,48.52328977,89.139,89.045,4.489]
[1645945026626,48.52328977,89.139,89.046,112.7]
[1645945027024,48.52328977,89.139,89.047,4.489]
[1645945027428,48.52328977,89.139,89.041,2.34737345]
[1645945027624,48.02328977,89.139,89.041,2.34737345]
[1645945031433,55.02328977,89.139,89.041,2.34737345]
[1645945032529,4.57870923,89.138,89.041,2.34737345]
[1645945032730,115.44678921,89.138,89.022,4.489]
[1645945032929,115.44678921,89.138,89.019,2.74678921]
[1645945032930,7.0,89.111,89.019,2.74678921]
[1645945033130,7.0,89.111,89.002,2.72103731]
[1645945033131,60.83947635,89.099,89.002,2.72103731]
[1645945033730,1.74678921,89.098,89.002,2.72103731]
[1645945034334,3.59513772,89.098,89.002,2.72103731]
[1645945034932,7.0,89.089,89.002,2.72103731]
[1645945035133,45.48928033,89.079,89.002,2.72103731]
[1645945035332,45.48928033,89.079,88.992,23.8738]
[1645945035533,2.74678921,89.078,88.993,2.6972761]
[1645945037234,45.48928033,89.079,88.993,2.6972761]
[1645945038932,45.48928033,89.079,88.993,112.7]
[1645945039132,45.48928033,89.079,88.994,2.42997779]
[1645945039735,45.48928033,89.079,88.996,112.7]
[1645945039937,45.48928033,89.079,88.997,2.92218519]
[1645945040137,45.48928033,89.079,88.998,112.7]
[1645945040340,45.48928033,89.079,89.0,13.48]
[1645945040539,45.48928033,89.079,89.001,112.7]
[1645945040740,45.48928033,89.079,89.002,2.61274155]
[1645945041340,2.74678921,89.115,89.002,2.61274155]
[1645945041542,13.48,89.13,89.003,139.94602185]
[1645945041739,2.74678921,89.125,89.005,112.7]
[1645945042141,2.74678921,89.125,89.006,2.3458272]
[1645945042339,53.30742649,89.124,89.006,2.3458272]
[1645945042749,2.74678921,89.123,89.006,2.3458272]
[1645945044244,13.48,89.12,89.006,2.3458272]
[1645945044647,16.22678921,89.12,89.006,2.3458272]
[1645945046449,28.48580392,89.119,89.006,2.3458272]
[1645945046647,1.36822483,89.118,89.006,2.3458272]
[1645945046849,30.72719898,89.118,89.006,2.3458272]
[1645945047047,4.26481148,89.117,89.006,2.3458272]
[1645945047250,7.0,89.114,89.006,2.3458272]
[1645945047448,13.48,89.1,89.006,2.3458272]
[1645945047649,13.48,89.09,89.006,2.3458272]
[1645945047848,50.41015686,89.079,89.006,2.3458272]
[1645945049452,2.15348314,89.078,89.006,2.3458272]
[1645945052160,3.83888918,89.078,89.006,2.3458272]
[1645945052363,2.15348314,89.078,89.006,2.3458272]
[1645945052561,2.15348314,89.078,88.994,3.00269884]
[1645945057184,3.53626633,89.078,88.994,3.00269884]
[1645945057487,3.53626633,89.078,88.962,47.501]
[1645945057687,2.74678921,89.077,88.963,2.30260505]
[1645945058185,2.74678921,89.077,88.963,115.00260505]
[1645945058384,2.74678921,89.077,88.964,2.88327316]
[1645945059389,16.8595,89.07,88.964,2.88327316]
[1645945059590,1.69200595,89.069,88.964,2.88327316]
[1645945059789,55.87381691,89.059,88.964,2.88327316]
[1645945060387,2.74678921,89.058,88.964,2.88327316]
[1645945062192,55.87381691,89.059,88.964,2.88327316]
[1645945062391,58.62060612,89.059,88.964,2.88327316]
[1645945062796,55.87381691,89.059,88.964,2.88327316]
[1645945063897,55.87381691,89.059,88.964,8.90327316]
[1645945065098,55.87381691,89.059,88.965,112.7]
[1645945065297,55.87381691,89.059,88.966,4.493]
[1645945065496,55.87381691,89.059,88.967,112.7]
[1645945065697,55.87381691,89.059,88.969,112.7]
[1645945065896,55.87381691,89.059,88.971,112.7]
[1645945066096,55.87381691,89.059,88.972,6.80245541]
[1645945066297,55.87381691,89.059,88.966,2.95349509]
[1645945067196,55.87381691,89.059,88.967,4.493]
[1645945067796,55.87381691,89.059,88.968,112.7]
[1645945067997,55.87381691,89.059,88.969,4.493]
[1645945068198,55.87381691,89.059,88.972,2.34365816]
[1645945068406,55.87381691,89.059,88.973,4.493]
[1645945068597,33.0552,89.1,88.974,112.95]
[1645945068799,33.0552,89.1,88.976,112.7]
[1645945068997,2.74678921,89.099,88.981,112.7]
[1645945069197,2.74678921,89.099,88.983,112.7]
[1645945069398,2.74678921,89.099,88.985,112.7]
[1645945069597,56.57244828,89.098,88.987,112.7]
[1645945069799,56.57244828,89.098,88.989,112.7]
[1645945069998,56.57244828,89.098,89.001,115.27936149]
[1645945070200,56.57244828,89.098,89.004,2.51126202]
[1645945070398,56.57244828,89.098,89.005,4.491]
[1645945070698,56.57244828,89.098,89.007,2.81259645]
[1645945070899,56.57244828,89.098,89.011,112.7]
[1645945071099,56.57244828,89.098,89.013,112.7]
[1645945071298,56.57244828,89.098,89.015,112.7]
[1645945071599,56.57244828,89.098,89.017,2.25125034]
[1645945073702,2.15348314,89.097,89.017,2.25125034]
[1645945074102,28.76566808,89.097,89.017,2.25125034]
[1645945074601,2.74678921,89.096,89.017,2.25125034]
[1645945075803,2.74678921,89.096,89.017,1.75125034]
[1645945076504,9.74678921,89.096,89.017,1.75125034]
[1645945076902,2.74678921,89.095,89.017,1.75125034]
[1645945077102,16.2,89.09,89.017,1.75125034]
[1645945077505,2.15348314,89.089,89.017,1.75125034]
[1645945080211,18.61668314,89.089,89.017,1.75125034]
[1645945080611,2.74678921,89.088,89.017,1.75125034]
[1645945082022,2.74678921,89.088,88.989,22.6684]
[1645945082218,2.74678921,89.088,89.003,2.76078342]
[1645945082924,2.74678921,89.088,89.004,24.3301]
[1645945083122,2.74678921,89.088,89.005,2.7838713]
[1645945084123,16.2,89.09,89.005,2.7838713]
[1645945084527,2.74678921,89.089,89.005,2.7838713]
[1645945085326,16.2,89.1,89.005,115.4838713]
[1645945085529,22.8166,89.112,89.006,3.00806851]
[1645945085727,22.8166,89.112,89.007,4.491]
[1645945085925,22.8166,89.112,89.012,3.09206982]
[1645945086126,16.2,89.12,89.013,4.491]
[1645945087526,2.74678921,89.127,89.013,4.491]
[1645945087746,16.2,89.12,89.013,4.491]
[1645945087944,16.2,89.11,89.012,3.09206982]
[1645945088147,26.61218494,89.109,89.012,3.09206982]
[1645945088346,26.61218494,89.109,89.003,4.491]
[1645945088546,2.74678921,89.097,89.005,2.9670419]
[1645945089645,2.74678921,89.097,89.005,115.6670419]
[1645945089845,2.74678921,89.097,89.005,5.71383111]